fUSD/lending_fUSD_20240827
["ID","MTS","AMOUNT","RATE_DAILY","PERIOD"]
[336268175,1724752247884,-500.0,0.00010994,2]
[336268176,1724752247894,-500.0,0.00010994,2]
[336268177,1724752247905,-890.35,0.00010994,2]
[336268178,1724752247914,-500.0,0.00010994,2]
[336268179,1724752247925,-500.0,0.00010994,2]
[336268180,1724752247935,-577.56,0.00010994,2]
[336268181,1724752247949,-500.0,0.00010994,2]
[336268182,1724752247960,-500.0,0.00010994,2]
[336268183,1724752247969,-500.0,0.00010994,2]
[336268184,1724752247979,-500.0,0.00010994,2]
[336268185,1724752247989,-151.0,0.00010994,2]
[336268186,1724752248000,-500.0,0.00010994,2]
[336268187,1724752248010,-547.91385174,0.00010994,2]
[336268188,1724752248020,-500.0,0.00010994,2]
[336268189,1724752248030,-186.91012378,0.00010994,2]
[336268190,1724752248041,-500.0,0.00010994,2]
[336268191,1724752248050,-500.0,0.00010994,2]
[336268192,1724752248060,-476.08867654,0.00010994,2]
[336268193,1724752248069,-500.0,0.00010994,2]
[336268194,1724752248079,-500.0,0.00010994,2]
[336268195,1724752248089,-500.0,0.00010994,2]
[336268196,1724752248100,-500.0,0.00010994,2]
[336268197,1724752248109,-500.0,0.00010994,2]
[336268198,1724752248120,-500.0,0.00010994,2]
[336268199,1724752248129,-151.0,0.00010994,2]
[336268200,1724752248139,-151.0,0.00010994,2]
[336268201,1724752248149,-500.0,0.00010994,2]
[336268202,1724752248162,-500.0,0.00010994,2]
[336268203,1724752248172,-500.0,0.00010994,2]
[336268204,1724752248182,-151.0,0.00010994,2]
[336268205,1724752248191,-151.0,0.00010994,2]
[336268206,1724752248201,-500.0,0.00010994,2]
[336268207,1724752248214,-500.0,0.00010994,2]
[336268208,1724752248223,-500.0,0.00010994,2]
[336268209,1724752248233,-500.0,0.00010994,2]
[336268210,1724752248243,-500.0,0.00010994,2]
[336268211,1724752248253,-154.886874,0.00010994,2]
[336268212,1724752248262,-500.0,0.00010994,2]
[336268213,1724752248272,-500.0,0.00010994,2]
[336268214,1724752248281,-500.0,0.00010994,2]
[336268215,1724752248291,-500.0,0.00010994,2]
[336268216,1724752248300,-500.0,0.00010994,2]
[336268217,1724752248310,-500.0,0.00010994,2]
[336268218,1724752248320,-523.47,0.00010994,2]
[336268219,1724752248330,-500.0,0.00010994,2]
[336268220,1724752248339,-500.0,0.00010994,2]
[336268221,1724752248349,-500.0,0.00010994,2]
[336268222,1724752248358,-1780.51,0.00010994,2]
[336268223,1724752248367,-500.0,0.00010994,2]
[336268224,1724752248378,-947.58,0.00010994,2]
[336268225,1724752248387,-3145.53,0.00010994,2]
[336268226,1724752248398,-500.0,0.00010994,2]
[336268227,1724752248408,-500.0,0.00010994,2]
[336268228,1724752248417,-1646.47,0.00010994,2]
[336268229,1724752248427,-500.0,0.00010994,2]
[336268230,1724752248436,-151.0,0.00010994,2]
[336268231,1724752248446,-151.0,0.00010994,2]
[336268232,1724752248455,-500.0,0.00010994,2]
[336268233,1724752248467,-500.0,0.00010994,2]
[336268234,1724752248477,-196.28782495,0.00010994,2]
[336268235,1724752248486,-500.0,0.00010994,2]
[336268236,1724752248497,-151.0,0.00010994,2]
[336268237,1724752248510,-151.0,0.00010994,2]
[336268238,1724752248519,-1868.95,0.00010994,2]
[336268239,1724752248529,-500.0,0.00010994,2]
[336268240,1724752248539,-151.0,0.00010994,2]
[336268241,1724752248550,-166.985608,0.00010994,2]
[336268242,1724752248559,-500.0,0.00010994,2]
[336268243,1724752248569,-500.0,0.00010994,2]
[336268244,1724752248578,-500.0,0.00010994,2]
[336268245,1724752248588,-500.0,0.00010994,2]
[336268246,1724752248597,-500.0,0.00010994,2]
[336268247,1724752248607,-3379.88,0.00010994,2]
[336268248,1724752248618,-1000.0,0.00010994,2]
[336268249,1724752248627,-500.0,0.00010994,2]
[336268250,1724752248637,-1333.16,0.00010994,2]
[336268251,1724752248646,-500.0,0.00010994,2]
[336268252,1724752248656,-500.0,0.00010994,2]
[336268253,1724752248666,-500.0,0.00010994,2]
[336268254,1724752248675,-500.0,0.00010994,2]
[336268255,1724752248685,-500.0,0.00010994,2]
[336268256,1724752248695,-500.0,0.00010994,2]
[336268257,1724752248705,-500.0,0.00010994,2]
[336268258,1724752248716,-2072.94,0.00010994,2]
[336268259,1724752248725,-387.57250071,0.00010994,2]
[336268260,1724752248734,-500.0,0.00010994,2]
[336268261,1724752248744,-500.0,0.00010994,2]
[336268262,1724752248753,-1478.71,0.00010994,2]
[336268263,1724752248763,-500.0,0.00010994,2]
[336268264,1724752248772,-500.0,0.00010994,2]
[336268265,1724752248781,-500.0,0.00010994,2]
[336268266,1724752248791,-1453.36,0.00010994,2]
[336268267,1724752248801,-500.0,0.00010994,2]
[336268268,1724752248810,-3315.82,0.00010994,2]
[336268269,1724752248819,-500.0,0.00010994,2]
[336268270,1724752248829,-500.0,0.00010994,2]
[336268271,1724752248838,-500.0,0.00010994,2]
[336268272,1724752248847,-500.0,0.00010994,2]
[336268273,1724752248857,-500.0,0.00010994,2]
[336268274,1724752248866,-638.74,0.00010994,2]
[336268275,1724752248876,-500.0,0.00010994,2]
[336268276,1724752248885,-500.0,0.00010994,2]
[336268277,1724752248895,-500.0,0.00010994,2]
[336268278,1724752248905,-500.0,0.00010994,2]
[336268279,1724752248915,-500.0,0.00010994,2]
[336268280,1724752248924,-911.1,0.00010994,2]
[336268281,1724752248934,-500.0,0.00010994,2]
[336268282,1724752248945,-453.95807784,0.00010994,2]
[336268283,1724752248955,-500.0,0.00010994,2]
[336268284,1724752248965,-500.0,0.00010994,2]
[336268285,1724752248974,-943.16,0.00010994,2]
[336268286,1724752248983,-500.0,0.00010994,2]
[336268287,1724752248992,-500.0,0.00010994,2]
[336268288,1724752249002,-500.0,0.00010994,2]
[336268289,1724752249011,-500.0,0.00010994,2]
[336268290,1724752249020,-500.0,0.00010994,2]
[336268291,1724752249030,-500.0,0.00010994,2]
[336268292,1724752249039,-500.0,0.00010994,2]
[336268293,1724752249048,-500.0,0.00010994,2]
[336268294,1724752249058,-151.0,0.00010994,2]
[336268295,1724752249069,-151.0,0.00010994,2]
[336268296,1724752249079,-500.0,0.00010994,2]
[336268297,1724752249089,-151.0,0.00010994,2]
[336268298,1724752249098,-500.0,0.00010994,2]
[336268299,1724752249107,-151.0,0.00010994,2]
[336268300,1724752249116,-151.0,0.00010994,2]
[336268301,1724752249126,-151.0,0.00010994,2]
[336268302,1724752249136,-500.0,0.00010994,2]
[336268303,1724752249145,-500.0,0.00010994,2]
[336268304,1724752249158,-223.773824,0.00010994,2]
[336268305,1724752249168,-1536.16,0.00010994,2]
[336268306,1724752249178,-500.0,0.00010994,2]
[336268307,1724752249187,-500.0,0.00010994,2]
[336268308,1724752249197,-500.0,0.00010994,2]
[336268309,1724752249206,-500.0,0.00010994,2]
[336268310,1724752249216,-500.0,0.00010994,2]
[336268311,1724752249226,-500.0,0.00010994,2]
[336268312,1724752249238,-500.0,0.00010994,2]
[336268313,1724752249248,-151.0,0.00010994,2]
[336268314,1724752249257,-151.0,0.00010994,2]
[336268315,1724752249267,-500.0,0.00010994,2]
[336268316,1724752249276,-500.0,0.00010994,2]
[336268317,1724752249286,-151.0,0.00010994,2]
[336268318,1724752249294,-151.0,0.00010994,2]
[336268319,1724752249304,-879.94,0.00010994,2]
[336268320,1724752249313,-500.0,0.00010994,2]
[336268321,1724752249322,-500.0,0.00010994,2]
[336268322,1724752249332,-500.0,0.00010994,2]
[336268323,1724752249342,-500.0,0.00010994,2]
[336268324,1724752249351,-500.0,0.00010994,2]
[336268325,1724752249360,-500.0,0.00010994,2]
[336268326,1724752249370,-500.0,0.00010994,2]
[336268327,1724752249379,-500.0,0.00010994,2]
[336268328,1724752249389,-500.0,0.00010994,2]
[336268329,1724752249398,-500.0,0.00010994,2]
[336268330,1724752249408,-3467.07,0.00010994,2]
[336268331,1724752249417,-500.0,0.00010994,2]
[336268332,1724752249427,-500.0,0.00010994,2]
[336268333,1724752249437,-500.0,0.00010994,2]
[336268334,1724752249446,-500.0,0.00010994,2]
[336268335,1724752249456,-513.87,0.00010994,2]
[336268336,1724752249476,-500.0,0.00010994,2]
[336268337,1724752249486,-569.26,0.00010994,2]
[336268338,1724752249495,-500.0,0.00010994,2]
[336268339,1724752249504,-500.0,0.00010994,2]
[336268340,1724752249682,-500.0,0.00010994,2]
[336268341,1724752249692,-500.0,0.00010994,2]
[336268342,1724752249702,-500.0,0.00010994,2]
[336268343,1724752249715,-506.29,0.00010994,2]
[336268344,1724752249725,-500.0,0.00010994,2]
[336268345,1724752249735,-500.0,0.00010994,2]
[336268346,1724752249744,-500.0,0.00010994,2]
[336268347,1724752249754,-500.0,0.00010994,2]
[336268348,1724752249764,-613.9,0.00010994,2]
[336268349,1724752249773,-500.0,0.00010994,2]
[336268350,1724752249783,-500.0,0.00010994,2]
[336268351,1724752249792,-500.0,0.00010994,2]
[336268352,1724752249801,-500.0,0.00010994,2]
[336268353,1724752249810,-648.39,0.00010994,2]
[336268354,1724752249820,-500.0,0.00010994,2]
[336268355,1724752249830,-640.34,0.00010994,2]
[336268356,1724752249839,-500.0,0.00010994,2]
[336268357,1724752249849,-802.84,0.00010994,2]
[336268358,1724752249858,-500.0,0.00010994,2]
[336268359,1724752249867,-500.0,0.00010994,2]
[336268360,1724752249876,-300.0,0.00010995,2]
[336268361,1724752249886,-500.0,0.00010995,2]
[336268362,1724752249895,-500.0,0.00010995,2]
[336268363,1724752249905,-500.0,0.00010995,2]
[336268364,1724752249914,-743.65,0.00010995,2]
[336268365,1724752249923,-267.26215355,0.00010995,2]
[336268366,1724752249933,-642.13,0.00010995,2]
[336268367,1724752249943,-500.0,0.00010995,2]
[336268368,1724752249953,-500.0,0.00010995,2]
[336268369,1724752249965,-1054.19,0.00010995,2]
[336268370,1724752249975,-500.0,0.00010995,2]
[336268371,1724752249984,-500.0,0.00010995,2]
[336268372,1724752249993,-500.0,0.00010995,2]
[336268373,1724752250003,-500.0,0.00010995,2]
[336268374,1724752250012,-500.0,0.00010995,2]
[336268375,1724752250021,-500.0,0.00010995,2]
[336268376,1724752250030,-500.0,0.00010995,2]
[336268377,1724752250039,-500.0,0.00010995,2]
[336268378,1724752250049,-500.0,0.00010995,2]
[336268379,1724752250058,-409.9,0.00010995,2]
[336268380,1724752250067,-500.0,0.00010995,2]
[336268381,1724752250076,-500.0,0.00010995,2]
[336268382,1724752250086,-500.0,0.00010995,2]
[336268383,1724752250095,-501.69296799,0.00010995,2]
[336268384,1724752250104,-600.04,0.00010995,2]
[336268385,1724752250113,-1160.35,0.00010995,2]
[336268386,1724752250123,-500.0,0.00010995,2]
[336268387,1724752250132,-500.0,0.00010995,2]
[336268388,1724752250141,-491.91907502,0.00010995,2]
[336268389,1724752250151,-500.0,0.00010995,2]
[336268390,1724752250165,-568.54735722,0.00010995,2]
[336268391,1724752250174,-500.0,0.00010995,2]
[336268392,1724752250183,-500.0,0.00010995,2]
[336268393,1724752250192,-500.0,0.00010995,2]
[336268394,1724752250202,-500.0,0.00010995,2]
[336268395,1724752250212,-500.0,0.00010995,2]
[336268396,1724752250221,-500.0,0.00010995,2]
[336268397,1724752250231,-704.39,0.00010995,2]
[336268398,1724752250243,-500.0,0.00010995,2]
[336268399,1724752250252,-151.0,0.00010995,2]
[336268400,1724752250261,-151.0,0.00010995,2]
[336268401,1724752250271,-500.0,0.00010995,2]
[336268402,1724752250282,-500.0,0.00010995,2]
[336268403,1724752250292,-500.0,0.00010995,2]
[336268404,1724752250301,-500.0,0.00010995,2]
[336268405,1724752250311,-508.2555939,0.00010995,2]
[336268406,1724752250320,-500.0,0.00010995,2]
[336268407,1724752250330,-500.0,0.00010995,2]
[336268408,1724752250340,-500.0,0.00010995,2]
[336268409,1724752250349,-529.03,0.00010995,2]
[336268410,1724752250359,-522.57,0.00010995,2]
[336268411,1724752250368,-622.7,0.00010995,2]
[336268412,1724752250378,-500.0,0.00010995,2]
[336268413,1724752250388,-500.0,0.00010995,2]
[336268414,1724752250397,-642.29,0.00010995,2]
[336268415,1724752250406,-500.0,0.00010995,2]
[336268416,1724752250416,-456.11,0.00010995,2]
[336268417,1724752250426,-500.0,0.00010995,2]
[336268418,1724752250436,-500.0,0.00010995,2]
[336268419,1724752250446,-500.0,0.00010995,2]
[336268420,1724752250455,-1138.9,0.00010995,2]
[336268421,1724752250466,-809.11,0.00010995,2]
[336268422,1724752250476,-1105.16,0.00010995,2]
[336268423,1724752250486,-500.0,0.00010995,2]
[336268424,1724752250497,-151.0,0.00010995,2]
[336268425,1724752250506,-151.0,0.00010995,2]
[336268426,1724752250516,-369.484353,0.00010995,2]
[336268427,1724752250526,-369.484353,0.00010995,2]
[336268428,1724752250535,-369.484353,0.00010995,2]
[336268429,1724752250545,-151.0,0.00010995,2]
[336268430,1724752250555,-1042.73,0.00010995,2]
[336268431,1724752250565,-202.58280532,0.00010995,2]
[336268432,1724752250574,-369.484353,0.00010995,2]
[336268433,1724752250583,-369.484353,0.00010995,2]
[336268434,1724752250593,-369.484353,0.00010995,2]
[336268435,1724752250602,-500.0,0.00010995,2]
[336268436,1724752250611,-500.0,0.00010995,2]
[336268437,1724752250621,-802.65,0.00010995,2]
[336268438,1724752250630,-500.0,0.00010995,2]
[336268439,1724752250639,-408.42,0.00010995,2]
[336268440,1724752250648,-796.48,0.00010995,2]
[336268441,1724752250658,-500.0,0.00010995,2]
[336268442,1724752250669,-237.050818,0.00010995,2]
[336268443,1724752250678,-237.050818,0.00010995,2]
[336268444,1724752250688,-151.0,0.00010995,2]
[336268445,1724752250698,-151.0,0.00010995,2]
[336268446,1724752250708,-237.050818,0.00010995,2]
[336268447,1724752250726,-237.050818,0.00010995,2]
[336268448,1724752250735,-600.37,0.00010995,2]
[336268449,1724752250746,-500.0,0.00010995,2]
[336268450,1724752250755,-455.29,0.00010995,2]
[336268451,1724752250765,-500.0,0.00010995,2]
[336268452,1724752250774,-500.0,0.00010995,2]
[336268453,1724752250783,-568.11,0.00010995,2]
[336268454,1724752250793,-151.0,0.00010995,2]
[336268455,1724752250802,-192.321943,0.00010995,2]
[336268456,1724752250812,-500.0,0.00010995,2]
[336268457,1724752250821,-500.0,0.00010995,2]
[336268458,1724752250831,-500.0,0.00010995,2]
[336268459,1724752250841,-500.0,0.00010995,2]
[336268460,1724752250851,-500.0,0.00010995,2]
[336268461,1724752250861,-500.0,0.00010995,2]
[336268462,1724752250871,-500.0,0.00010995,2]
[336268463,1724752250881,-500.0,0.00010995,2]
[336268464,1724752250891,-632.23,0.00010995,2]
[336268465,1724752250900,-500.0,0.00010995,2]
[336268466,1724752250909,-500.0,0.00010995,2]
[336268467,1724752250919,-750.88,0.00010995,2]
[336268468,1724752250928,-500.0,0.00010995,2]
[336268469,1724752250937,-500.0,0.00010995,2]
[336268470,1724752250948,-500.0,0.00010995,2]
[336268471,1724752250958,-500.0,0.00010995,2]
[336268472,1724752250970,-500.0,0.00010995,2]
[336268473,1724752250979,-500.0,0.00010995,2]
[336268474,1724752250988,-151.0,0.00010995,2]
[336268475,1724752250998,-151.0,0.00010995,2]
[336268476,1724752251007,-500.0,0.00010995,2]
[336268477,1724752251016,-500.0,0.00010995,2]
[336268478,1724752251026,-500.0,0.00010995,2]
[336268479,1724752251035,-500.0,0.00010995,2]
[336268480,1724752251044,-603.71239872,0.00010995,2]
[336268481,1724752251054,-394.3622,0.00010995,2]
[336268482,1724752251063,-394.3622,0.00010995,2]
[336268483,1724752251073,-394.3622,0.00010995,2]
[336268484,1724752251082,-500.0,0.00010995,2]
[336268485,1724752251092,-394.3622,0.00010995,2]
[336268486,1724752251101,-394.3622,0.00010995,2]
[336268487,1724752251111,-394.3622,0.00010995,2]
[336268488,1724752251120,-500.0,0.00010995,2]
[336268489,1724752251130,-500.0,0.00010995,2]
[336268490,1724752251139,-500.0,0.00010995,2]
[336268491,1724752251148,-890.35,0.00010995,2]
[336268492,1724752251160,-500.0,0.00010995,2]
[336268493,1724752251170,-500.0,0.00010995,2]
[336268494,1724752251179,-500.0,0.00010995,2]
[336268495,1724752251188,-500.0,0.00010995,2]
[336268496,1724752251198,-577.56,0.00010995,2]
[336268497,1724752251207,-500.0,0.00010995,2]
[336268498,1724752251218,-500.0,0.00010995,2]
[336268499,1724752251227,-500.0,0.00010995,2]
[336268500,1724752251238,-500.0,0.00010995,2]
[336268501,1724752251247,-500.0,0.00010995,2]
[336268502,1724752251256,-500.0,0.00010995,2]
[336268503,1724752251266,-500.0,0.00010995,2]
[336268504,1724752251275,-500.0,0.00010995,2]
[336268505,1724752251285,-500.0,0.00010995,2]
[336268506,1724752251294,-500.0,0.00010995,2]
[336268507,1724752251304,-500.0,0.00010995,2]
[336268508,1724752251314,-500.0,0.00010995,2]
[336268509,1724752251324,-500.0,0.00010995,2]
[336268510,1724752251333,-500.0,0.00010995,2]
[336268511,1724752251343,-218.26071688,0.00010995,2]
[336268512,1724752251352,-500.0,0.00010995,2]
[336268513,1724752251362,-648.86332847,0.00010995,2]
[336268514,1724752251371,-452.36298274,0.00010995,2]
[336268515,1724752251612,-47.63701726,0.00010995,2]
[336268516,1724752251622,-500.0,0.00010995,2]
[336268517,1724752251631,-500.0,0.00010995,2]
[336268518,1724752251640,-500.0,0.00010995,2]
[336268519,1724752251652,-342.70204922,0.00010995,2]
[336268520,1724752252156,-232.32265832,0.000109,2]
[336268521,1724752252167,-306.46374965,0.00010979,2]
[336268522,1724752252176,-1323.89,0.0001099,2]
[336268523,1724752252186,-421.26493,0.00010992,2]
[336268524,1724752252195,-1135.04868718,0.00010993,2]
[336268525,1724752252216,-143.90131282,0.00010993,2]
[336268526,1724752252226,-204.92467887,0.00010993,2]
[336268527,1724752252792,-421.26493,0.00010958,2]
[336268528,1724752252802,-421.26493,0.00010991,2]
[336268529,1724752252812,-421.26493,0.00010991,2]
[336268530,1724752252822,-421.26493,0.00010992,2]
[336268531,1724752252831,-1118.96532113,0.00010993,2]
[336268532,1724752252841,-421.26493,0.00010993,2]
[336268533,1724752252850,-421.26493,0.00010993,2]
[336268534,1724752252859,-1278.95,0.00010994,2]
[336268535,1724752252868,-1323.89,0.00010994,2]
[336268536,1724752252877,-421.26493,0.00010994,2]
[336268537,1724752252887,-421.26493,0.00010994,2]
[336268538,1724752252896,-421.26493,0.00010994,2]
[336268539,1724752252906,-421.26493,0.00010994,2]
[336268540,1724752252915,-157.29795078,0.00010995,2]
[336268541,1724752252924,-500.0,0.00010995,2]
[336268542,1724752252933,-151.0,0.00010995,2]
[336268543,1724752252944,-500.0,0.00010995,2]
[336268544,1724752252954,-151.0,0.00010995,2]
[336268545,1724752252964,-151.0,0.00010995,2]
[336268546,1724752252973,-500.0,0.00010995,2]
[336268547,1724752252983,-500.0,0.00010995,2]
[336268548,1724752252992,-500.0,0.00010995,2]
[336268549,1724752253002,-500.0,0.00010995,2]
[336268550,1724752253011,-500.0,0.00010995,2]
[336268551,1724752253020,-500.0,0.00010995,2]
[336268552,1724752253030,-500.0,0.00010995,2]
[336268553,1724752253039,-500.0,0.00010995,2]
[336268554,1724752253048,-500.0,0.00010995,2]
[336268555,1724752253058,-500.0,0.00010995,2]
[336268556,1724752253068,-1339.897919,0.00010995,2]
[336268557,1724752253077,-500.0,0.00010995,2]
[336268558,1724752253087,-1339.897919,0.00010995,2]
[336268559,1724752253096,-500.0,0.00010995,2]
[336268560,1724752253106,-523.47,0.00010995,2]
[336268561,1724752253116,-878.38452,0.00010995,2]
[336268562,1724752253126,-878.38452,0.00010995,2]
[336268563,1724752253135,-500.0,0.00010995,2]
[336268564,1724752253145,-570.45865548,0.00010995,2]
[336268565,1724752253174,-2670.35171562,0.00010995,2]
[336268566,1724752253185,-481.56729092,0.00010995,2]
[336268567,1724752253197,-1871.15233798,0.00010995,2]
[336268568,1724752253207,-500.0,0.00010995,2]
[336268569,1724752253217,-1073.25350165,0.00010995,2]
[336268570,1724752253230,-4520.27649835,0.00010995,2]
[336268571,1724752253242,-500.0,0.00010995,2]
[336268572,1724752253253,-1114.00990893,0.00010995,2]
[336268573,1724752253266,-40.45354307,0.00010995,2]
[336268574,1724752253276,-1154.463452,0.00010995,2]
[336268575,1724752253286,-388.39435995,0.00010995,2]
[336268576,1724752253296,-678.67232653,0.00010995,2]
[336268577,1724752267142,526.89163581,9.962e-05,2]
[336268578,1724752351562,214.02900193,9.962e-05,2]
[336268579,1724752431619,165.22,9.979e-05,2]
[336268580,1724752460429,176.32,9.975e-05,2]
[336268581,1724752528973,604.41,9.98e-05,2]
[336268582,1724752533329,840.0,9.97e-05,2]
[336268583,1724752707801,387.93,8.219e-05,2]
[336268585,1724752831225,235.60557884,9.962e-05,2]
[336268586,1724752857404,609.33591475,9.962e-05,2]
[336268587,1724752857637,-196.25883356,9.962e-05,2]
[336268588,1724752858172,-150.0,9.962e-05,2]
[336268589,1724752859190,-150.0,9.962e-05,2]
[336268590,1724752859760,-150.0,9.962e-05,2]
[336268591,1724752860267,-150.0,9.962e-05,2]
[336268592,1724752860882,-150.0,9.962e-05,2]
[336268593,1724752861396,-150.0,9.962e-05,2]
[336268594,1724752862137,-150.0,9.962e-05,2]
[336268595,1724752862552,-150.0,9.962e-05,2]
[336268596,1724752862983,-150.0,9.962e-05,2]
[336268597,1724752863631,-150.0,9.962e-05,2]
[336268598,1724752952779,-157.61,9.922e-05,2]
[336268599,1724752969016,-176.32,9.916e-05,2]
[336268600,1724753023431,-155.0,0.00010009,2]
[336268602,1724753076086,-291.29533735,9.909e-05,2]
[336268603,1724753076784,-150.0,9.909e-05,2]
[336268604,1724753078636,-8.70466265,9.909e-05,2]
[336268605,1724753113300,328.0,9.902e-05,2]
[336268609,1724753224127,150.0,8.219e-05,2]
[336268610,1724753224151,150.0,8.219e-05,2]
[336268611,1724753224177,100.69,8.219e-05,2]
[336268666,1724753431716,-1500.0,9.941e-05,2]
[336268668,1724753431726,-264.75871737,9.943e-05,2]
[336268670,1724753431736,-155.14790047,0.00010009,2]
[336268672,1724753431745,-1186.59994827,0.00010371,2]
[336268674,1724753431754,-400.69,0.00010471,2]
[336268676,1724753431764,-191.386007,0.00010482,2]
[336268678,1724753431774,-2415.53760373,0.000105,2]
[336268680,1724753431784,-300.73,0.000105,2]
[336268682,1724753431794,-1912.73025493,0.00010505,2]
[336268684,1724753431803,-300.0,0.00010712,2]
[336268686,1724753431812,-1025.54918321,0.00010713,2]
[336268688,1724753431821,-357.45302385,0.00010713,2]
[336268690,1724753431831,-150.56267527,0.00010743,2]
[336268691,1724753431841,-293.0,0.00010757,2]
[336268692,1724753431851,-2681.87,0.00010758,2]
[336268693,1724753431861,-3416.0425,0.00010758,2]
[336268694,1724753431870,-155.0,0.00010799,2]
[336268695,1724753431880,-249.999999,0.000108,2]
[336268696,1724753431889,-150.0,0.00010835,2]
[336268697,1724753431898,-150.0,0.00010846,2]
[336268698,1724753431908,-548.77669796,0.00010852,2]
[336268699,1724753431917,-155.09832397,0.00010852,2]
[336268700,1724753431927,-150.0,0.00010857,2]
[336268701,1724753431936,-2603.5231,0.00010858,2]
[336268702,1724753431947,-16654.1801,0.00010858,2]
[336268703,1724753431957,-121628.53997547,0.00010858,2]
[336268704,1724753431968,-9903.26832453,0.00010858,2]
[336268705,1724753431978,-687.96190226,0.00010861,2]
[336268706,1724753431988,-171.49266634,0.00010861,2]
[336268707,1724753431998,-1140.6760176,0.00010861,2]
[336268708,1724753432007,-305.10573782,0.00010862,2]
[336268709,1724753432017,-155.0,0.00010888,2]
[336268710,1724753432026,-155.0,0.00010888,2]
[336268711,1724753432035,-1574.19358105,0.0001089,2]
[336268712,1724753432045,-310.6770444,0.0001089,2]
[336268713,1724753432078,-254.36202338,0.0001089,2]
[336268714,1724753432089,-304.93694222,0.0001089,2]
[336268715,1724753432098,-3.12741127,0.00010894,2]
[336268716,1724753432109,-253.25115793,0.00010894,2]
[336268717,1724753432118,-164.14081489,0.00010896,2]
[336268718,1724753432128,-446.16107072,0.00010899,2]
[336268719,1724753432137,-446.16107072,0.00010899,2]
[336268720,1724753432146,-446.16107072,0.00010899,2]
[336268721,1724753432156,-446.16107072,0.00010899,2]
[336268722,1724753432165,-446.16107072,0.00010899,2]
[336268723,1724753432174,-446.16107072,0.00010899,2]
[336268724,1724753432183,-43.57640286,0.00010899,2]
[336268725,1724753432203,-402.58466786,0.00010899,2]
[336268727,1724753432212,-228.14018956,0.00010899,2]
[336268745,1724753437786,-165.02678942,0.00010852,2]
[336268747,1724753437795,-218.02088116,0.00010899,2]
[336268748,1724753437804,-446.16107072,0.00010899,2]
[336268749,1724753437813,-610.14708948,0.00010899,2]
[336268750,1724753437825,-669.62499999,0.00010899,2]
[336268751,1724753437835,-316.97206684,0.00010899,2]
[336268752,1724753437846,-209.82897782,0.00010899,2]
[336268753,1724753437855,-473.19276624,0.00010899,2]
[336268754,1724753437864,-1806.57313413,0.000109,2]
[336268755,1724753437874,-150.0,0.000109,2]
[336268756,1724753437884,-446.16107072,0.000109,2]
[336268757,1724753437893,-1000.0,0.000109,2]
[336268758,1724753437902,-1806.57313413,0.000109,2]
[336268759,1724753437912,-186.43854902,0.000109,2]
[336268760,1724753437921,-186.43854901,0.000109,2]
[336268761,1724753437930,-186.43854901,0.000109,2]
[336268762,1724753437940,-379.0,0.0001092,2]
[336268763,1724753437949,-300.0,0.00010929,2]
[336268764,1724753437958,-500.0,0.00010958,2]